[Event "*** Titled Tuesday Blitz"]
[Site "Chess.com"]
[Date "2020.02.04"]
[Round "5"]
[White "Gordima"]
[Black "Rud_Makarian"]
[Result "1-0"]
[WhiteElo "2789"]
[BlackElo "2608"]
[TimeControl "180+2"]
[EndTime "10:06:35 PST"]
[Termination "Gordima won by checkmate"]

1. d4 {[%clk 0:03:01.9]} 1... Nf6 {[%clk 0:02:48.5]} 2. Nf3 {[%clk 0:03:01.8]}
2... g6 {[%clk 0:02:48.8]} 3. Bg5 {[%clk 0:03:02.3]} 3... Bg7 {[%clk 0:02:50.7]}
4. Nbd2 {[%clk 0:03:03.6]} 4... d5 {[%clk 0:02:51.3]} 5. e3 {[%clk 0:03:02.7]}
5... O-O {[%clk 0:02:52.4]} 6. Be2 {[%clk 0:03:02.5]} 6... c5 {[%clk 0:02:53.1]}
7. c3 {[%clk 0:03:03.4]} 7... cxd4 {[%clk 0:02:53.9]} 8. exd4 {[%clk 0:03:04.2]}
8... Nc6 {[%clk 0:02:53.4]} 9. O-O {[%clk 0:03:04.2]} 9... Bf5 {[%clk
0:02:49.4]} 10. Nh4 {[%clk 0:03:03.5]} 10... Ne4 {[%clk 0:02:43.3]} 11. Bf4
{[%clk 0:02:53.9]} 11... Nxd2 {[%clk 0:02:37.7]} 12. Qxd2 {[%clk 0:02:55.8]}
12... Be6 {[%clk 0:02:17.8]} 13. Qe3 {[%clk 0:02:47.1]} 13... Rc8 {[%clk
0:02:16.3]} 14. Rae1 {[%clk 0:02:46.6]} 14... Qd7 {[%clk 0:02:17]} 15. Bd3
{[%clk 0:02:45.2]} 15... Rfe8 {[%clk 0:02:16.5]} 16. Bh6 {[%clk 0:02:39.2]}
16... Bf6 {[%clk 0:02:15]} 17. Qf4 {[%clk 0:02:20.6]} 17... Bg4 {[%clk
0:02:10.5]} 18. h3 {[%clk 0:02:11.8]} 18... Bxh4 {[%clk 0:01:51.1]} 19. hxg4
{[%clk 0:02:06.6]} 19... Bf6 {[%clk 0:01:51.8]} 20. Re2 {[%clk 0:01:55.1]} 20...
Qc7 {[%clk 0:01:41.2]} 21. Qf3 {[%clk 0:01:51.8]} 21... Bg7 {[%clk 0:01:38.3]}
22. Bf4 {[%clk 0:01:46.7]} 22... Qd7 {[%clk 0:01:36]} 23. Rfe1 {[%clk 0:01:33]}
23... a6 {[%clk 0:01:34.4]} 24. g5 {[%clk 0:01:22.3]} 24... b5 {[%clk
0:01:33.3]} 25. a3 {[%clk 0:01:23.4]} 25... e6 {[%clk 0:01:31]} 26. g3 {[%clk
0:01:19.4]} 26... Bf8 {[%clk 0:01:21.8]} 27. Kg2 {[%clk 0:01:14.3]} 27... Bd6
{[%clk 0:01:22.6]} 28. Bxd6 {[%clk 0:00:49]} 28... Qxd6 {[%clk 0:01:22.5]} 29.
Qf6 {[%clk 0:00:49.8]} 29... Qd8 {[%clk 0:01:18.1]} 30. Qf4 {[%clk 0:00:38.3]}
30... Qc7 {[%clk 0:01:17.7]} 31. Qh4 {[%clk 0:00:35.1]} 31... e5 {[%clk
0:01:07.5]} 32. dxe5 {[%clk 0:00:33]} 32... Nxe5 {[%clk 0:00:59.7]} 33. Qf4
{[%clk 0:00:23.3]} 33... Nxd3 {[%clk 0:00:20.8]} 34. Rxe8+ {[%clk 0:00:23.3]}
34... Kg7 {[%clk 0:00:19.3]} 35. Qf6# {[%clk 0:00:24.2]} 1-0

[Event "*** Titled Tuesday Blitz"]
[Site "Chess.com"]
[Date "2020.02.04"]
[Round "5"]
[White "PIwan"]
[Black "artooon"]
[Result "0-1"]
[WhiteElo "2505"]
[BlackElo "2802"]
[TimeControl "180+2"]
[EndTime "10:06:38 PST"]
[Termination "artooon won by resignation"]

1. c4 {[%clk 0:03:01.9]} 1... Nf6 {[%clk 0:02:59.3]} 2. Nc3 {[%clk 0:03:03.3]}
2... e6 {[%clk 0:02:59.8]} 3. e4 {[%clk 0:03:04.8]} 3... d5 {[%clk 0:03:01.3]}
4. e5 {[%clk 0:03:06.4]} 4... d4 {[%clk 0:03:02.3]} 5. exf6 {[%clk 0:03:08.3]}
5... dxc3 {[%clk 0:03:03.9]} 6. bxc3 {[%clk 0:03:10.2]} 6... Qxf6 {[%clk
0:03:05.4]} 7. Nf3 {[%clk 0:03:11.8]} 7... c5 {[%clk 0:03:05.5]} 8. Bd3 {[%clk
0:03:12]} 8... Nc6 {[%clk 0:03:05.8]} 9. O-O {[%clk 0:03:12.3]} 9... Bd6 {[%clk
0:03:06.1]} 10. Qc2 {[%clk 0:03:06.3]} 10... h6 {[%clk 0:03:06.5]} 11. Rb1
{[%clk 0:03:07.4]} 11... O-O {[%clk 0:03:07.2]} 12. Bh7+ {[%clk 0:03:07.2]}
12... Kh8 {[%clk 0:03:07.9]} 13. Be4 {[%clk 0:03:09.1]} 13... Rd8 {[%clk
0:03:08.2]} 14. Rd1 {[%clk 0:02:45.3]} 14... e5 {[%clk 0:02:56]} 15. d3 {[%clk
0:02:32.4]} 15... Rb8 {[%clk 0:02:54.3]} 16. Be3 {[%clk 0:02:20.9]} 16... Bd7
{[%clk 0:02:31.2]} 17. h3 {[%clk 0:02:03.3]} 17... b6 {[%clk 0:02:28.5]} 18. d4
{[%clk 0:01:21]} 18... exd4 {[%clk 0:02:11.5]} 19. cxd4 {[%clk 0:01:22.9]} 19...
cxd4 {[%clk 0:02:05.3]} 20. Nxd4 {[%clk 0:01:11.5]} 20... Nxd4 {[%clk
0:01:51.9]} 21. Bxd4 {[%clk 0:01:13.4]} 21... Be5 {[%clk 0:01:52.7]} 22. Bxe5
{[%clk 0:00:59.6]} 22... Qxe5 {[%clk 0:01:54.6]} 23. c5 {[%clk 0:01:01]} 23...
bxc5 {[%clk 0:01:26.7]} 24. Rxb8 {[%clk 0:00:52.7]} 24... Qxb8 {[%clk 0:01:28]}
25. Qxc5 {[%clk 0:00:53.9]} 25... Be6 {[%clk 0:01:11.3]} 26. Rxd8+ {[%clk
0:00:43.7]} 26... Qxd8 {[%clk 0:01:12.3]} 27. Qxa7 {[%clk 0:00:45]} 27... f5
{[%clk 0:00:57.2]} 28. Qa8 {[%clk 0:00:39.1]} 28... Qxa8 {[%clk 0:00:55.5]} 29.
Bxa8 {[%clk 0:00:41]} 29... Bxa2 {[%clk 0:00:56.3]} 30. f4 {[%clk 0:00:40.8]}
30... g5 {[%clk 0:00:55.9]} 31. Kf2 {[%clk 0:00:37.1]} 31... Kg7 {[%clk
0:00:54]} 32. g4 {[%clk 0:00:35.6]} 32... gxf4 {[%clk 0:00:45]} 33. Kf3 {[%clk
0:00:34.7]} 33... fxg4+ {[%clk 0:00:46.1]} 34. hxg4 {[%clk 0:00:36.6]} 34... Kf6
{[%clk 0:00:46.4]} 35. Kxf4 {[%clk 0:00:37.9]} 35... Be6 {[%clk 0:00:47.6]} 36.
Be4 {[%clk 0:00:38.6]} 36... Ba2 {[%clk 0:00:48.4]} 37. Bf5 {[%clk 0:00:39.5]}
37... Bd5 {[%clk 0:00:48.9]} 38. Bc8 {[%clk 0:00:38.5]} 38... Bf7 {[%clk
0:00:49.4]} 39. Bf5 {[%clk 0:00:40.4]} 39... Be8 {[%clk 0:00:50.3]} 40. Bc8
{[%clk 0:00:42.3]} 40... Bf7 {[%clk 0:00:51.6]} 41. Bf5 {[%clk 0:00:44.2]} 41...
Ba2 {[%clk 0:00:52.8]} 42. Bc8 {[%clk 0:00:46.1]} 42... Bc4 {[%clk 0:00:53.9]}
43. Bf5 {[%clk 0:00:48]} 43... Ba6 {[%clk 0:00:55]} 44. Bc8 {[%clk 0:00:49.9]}
44... Bxc8 {[%clk 0:00:55.4]} 0-1

[Event "*** Titled Tuesday Blitz"]
[Site "Chess.com"]
[Date "2020.02.04"]
[Round "5"]
[White "DevikBronstein"]
[Black "albi1999"]
[Result "1-0"]
[WhiteElo "2728"]
[BlackElo "2508"]
[TimeControl "180+2"]
[EndTime "10:06:41 PST"]
[Termination "DevikBronstein won by resignation"]

1. e4 {[%clk 0:03:01.9]} 1... e5 {[%clk 0:02:57.3]} 2. Nf3 {[%clk 0:03:02.6]}
2... Nc6 {[%clk 0:02:58.8]} 3. Bb5 {[%clk 0:03:03.5]} 3... a6 {[%clk 0:02:59.3]}
4. Ba4 {[%clk 0:03:04.7]} 4... Nf6 {[%clk 0:02:58.2]} 5. O-O {[%clk 0:03:05.6]}
5... b5 {[%clk 0:02:59.2]} 6. Bb3 {[%clk 0:03:06.2]} 6... Be7 {[%clk 0:03:01.1]}
7. Re1 {[%clk 0:03:07]} 7... O-O {[%clk 0:02:57.8]} 8. a4 {[%clk 0:03:07.5]}
8... b4 {[%clk 0:02:56.7]} 9. d3 {[%clk 0:03:08.4]} 9... d6 {[%clk 0:02:46]} 10.
Nbd2 {[%clk 0:03:09.5]} 10... Na5 {[%clk 0:02:45.4]} 11. Ba2 {[%clk 0:03:10.6]}
11... c5 {[%clk 0:02:45]} 12. c3 {[%clk 0:03:12]} 12... Rb8 {[%clk 0:02:43.8]}
13. d4 {[%clk 0:03:12.8]} 13... cxd4 {[%clk 0:02:11]} 14. cxd4 {[%clk
0:03:13.7]} 14... Qc7 {[%clk 0:02:10.7]} 15. h3 {[%clk 0:03:10.6]} 15... h6
{[%clk 0:02:08.1]} 16. Nf1 {[%clk 0:02:59.2]} 16... Rd8 {[%clk 0:02:02.5]} 17.
d5 {[%clk 0:02:40.2]} 17... b3 {[%clk 0:01:47.7]} 18. Bb1 {[%clk 0:02:40.6]}
18... Nc4 {[%clk 0:01:49.6]} 19. Bd3 {[%clk 0:02:34.7]} 19... Bd7 {[%clk
0:01:48.3]} 20. Ne3 {[%clk 0:02:26.9]} 20... Nxe3 {[%clk 0:01:47.2]} 21. Bxe3
{[%clk 0:02:26.3]} 21... Qa5 {[%clk 0:01:43.9]} 22. Bd2 {[%clk 0:02:26.8]} 22...
Qb6 {[%clk 0:01:43.9]} 23. Be3 {[%clk 0:02:09.5]} 23... Qb7 {[%clk 0:01:43.3]}
24. Nd2 {[%clk 0:02:08.7]} 24... Rdc8 {[%clk 0:01:42.6]} 25. Ra3 {[%clk
0:02:06.1]} 25... Qa8 {[%clk 0:01:16.2]} 26. Rxb3 {[%clk 0:01:59.3]} 26... Bd8
{[%clk 0:01:12.3]} 27. Rxb8 {[%clk 0:01:50.7]} 27... Rxb8 {[%clk 0:01:13.5]} 28.
Nc4 {[%clk 0:01:49.7]} 28... Ne8 {[%clk 0:01:11]} 29. Bd2 {[%clk 0:01:48.3]}
29... Qb7 {[%clk 0:01:08.8]} 30. Bc3 {[%clk 0:01:47]} 30... Qc8 {[%clk
0:00:57.1]} 31. Nd2 {[%clk 0:01:34.6]} 31... Bb6 {[%clk 0:00:54.9]} 32. a5
{[%clk 0:01:31]} 32... Ba7 {[%clk 0:00:54.4]} 33. Qe2 {[%clk 0:01:31.8]} 33...
Bb5 {[%clk 0:00:55.3]} 34. Bxb5 {[%clk 0:01:32.8]} 34... Rxb5 {[%clk 0:00:57.2]}
35. Nf1 {[%clk 0:01:28.9]} 35... Nf6 {[%clk 0:00:55.5]} 36. Ng3 {[%clk 0:01:29]}
36... g6 {[%clk 0:00:55]} 37. Qd2 {[%clk 0:01:27.5]} 37... Kg7 {[%clk
0:00:55.2]} 38. Kh2 {[%clk 0:01:23.5]} 38... Qc4 {[%clk 0:00:56.1]} 39. f4
{[%clk 0:01:23]} 39... Nd7 {[%clk 0:00:43]} 40. fxe5 {[%clk 0:01:04.9]} 40...
Nxe5 {[%clk 0:00:44.9]} 41. Rf1 {[%clk 0:01:01.8]} 41... f6 {[%clk 0:00:45.1]}
42. Qf4 {[%clk 0:01:02.1]} 42... Nd7 {[%clk 0:00:39.8]} 43. Bxf6+ {[%clk
0:01:02.6]} 1-0

[Event "*** Titled Tuesday Blitz"]
[Site "Chess.com"]
[Date "2020.02.04"]
[Round "5"]
[White "przemekpiotrowski"]
[Black "Hydrargyrum_Girl"]
[Result "0-1"]
[WhiteElo "2351"]
[BlackElo "2194"]
[TimeControl "180+2"]
[EndTime "10:06:42 PST"]
[Termination "Hydrargyrum_Girl won by resignation"]

1. e4 {[%clk 0:03:01.9]} 1... e5 {[%clk 0:03:00.7]} 2. Nf3 {[%clk 0:03:02.9]}
2... Nc6 {[%clk 0:03:02.3]} 3. Bc4 {[%clk 0:03:04.5]} 3... Bc5 {[%clk
0:03:02.1]} 4. Nc3 {[%clk 0:03:05.6]} 4... Nf6 {[%clk 0:03:01.3]} 5. d3 {[%clk
0:03:06.9]} 5... h6 {[%clk 0:02:55.5]} 6. Be3 {[%clk 0:03:08]} 6... Bb6 {[%clk
0:02:55.5]} 7. Qe2 {[%clk 0:03:08.6]} 7... d6 {[%clk 0:02:38.2]} 8. h3 {[%clk
0:03:09.8]} 8... Qe7 {[%clk 0:02:37.4]} 9. a3 {[%clk 0:03:10.5]} 9... Be6 {[%clk
0:02:37.8]} 10. Bxe6 {[%clk 0:03:07.6]} 10... Qxe6 {[%clk 0:02:38]} 11. Nh4
{[%clk 0:03:04]} 11... Nd4 {[%clk 0:02:25.4]} 12. Bxd4 {[%clk 0:03:02.4]} 12...
Bxd4 {[%clk 0:02:26]} 13. Nf5 {[%clk 0:03:01.6]} 13... Bxc3+ {[%clk 0:02:25.9]}
14. bxc3 {[%clk 0:03:02.1]} 14... O-O {[%clk 0:02:23.3]} 15. c4 {[%clk
0:03:03.3]} 15... c6 {[%clk 0:02:15.5]} 16. Rb1 {[%clk 0:03:00.1]} 16... b6
{[%clk 0:02:15.5]} 17. O-O {[%clk 0:02:54.7]} 17... d5 {[%clk 0:01:40.7]} 18.
cxd5 {[%clk 0:02:49.3]} 18... cxd5 {[%clk 0:01:42]} 19. Rb5 {[%clk 0:02:49.9]}
19... Rac8 {[%clk 0:01:36.2]} 20. a4 {[%clk 0:02:25.8]} 20... Rfe8 {[%clk
0:01:31.6]} 21. a5 {[%clk 0:02:22.5]} 21... Qc6 {[%clk 0:01:24.5]} 22. Rfb1
{[%clk 0:02:14.7]} 22... dxe4 {[%clk 0:01:18.3]} 23. axb6 {[%clk 0:02:10.5]}
23... axb6 {[%clk 0:01:17.7]} 24. Rxb6 {[%clk 0:01:43.1]} 24... Qxc2 {[%clk
0:01:13.7]} 25. Qxc2 {[%clk 0:01:43.9]} 25... Rxc2 {[%clk 0:01:15.6]} 26. Nd6
{[%clk 0:01:42.9]} 26... Rd8 {[%clk 0:00:35.6]} 27. Nxe4 {[%clk 0:01:43]} 27...
Nxe4 {[%clk 0:00:36.3]} 28. dxe4 {[%clk 0:01:44.9]} 28... Rdd2 {[%clk
0:00:37.6]} 29. Rf1 {[%clk 0:01:44.5]} 29... Rd4 {[%clk 0:00:35.5]} 30. Rb8+
{[%clk 0:01:42.6]} 30... Kh7 {[%clk 0:00:36.2]} 31. Rb3 {[%clk 0:01:35.7]} 31...
Rxe4 {[%clk 0:00:36]} 32. Rf3 {[%clk 0:01:37.4]} 32... f6 {[%clk 0:00:30.2]} 33.
Ra1 {[%clk 0:01:38.7]} 33... Rec4 {[%clk 0:00:27.6]} 34. Ra7 {[%clk 0:01:37.5]}
34... Rc7 {[%clk 0:00:25.3]} 35. Ra8 {[%clk 0:01:38.9]} 35... Rc1+ {[%clk
0:00:23]} 36. Kh2 {[%clk 0:01:39.6]} 36... R1c4 {[%clk 0:00:24.1]} 37. Raa3
{[%clk 0:01:35.8]} 37... Rc2 {[%clk 0:00:22.4]} 38. g3 {[%clk 0:01:35.9]} 38...
Rc1 {[%clk 0:00:20]} 39. h4 {[%clk 0:01:32.8]} 39... h5 {[%clk 0:00:19.2]} 40.
Ra8 {[%clk 0:01:29.7]} 40... R1c3 {[%clk 0:00:18.7]} 41. Kg2 {[%clk 0:01:31]}
41... Rxf3 {[%clk 0:00:19.6]} 42. Kxf3 {[%clk 0:01:32.9]} 42... Rc3+ {[%clk
0:00:19.6]} 43. Ke4 {[%clk 0:01:33.5]} 43... Kg6 {[%clk 0:00:20.7]} 44. Ra6
{[%clk 0:01:33.9]} 44... Rc2 {[%clk 0:00:20.4]} 45. Ke3 {[%clk 0:01:33.6]} 45...
Rc4 {[%clk 0:00:21.2]} 46. Ra7 {[%clk 0:01:33.7]} 46... Rc3+ {[%clk 0:00:19.3]}
47. Kd2 {[%clk 0:01:34.4]} 47... Rf3 {[%clk 0:00:19.6]} 48. Ke2 {[%clk
0:01:35.8]} 48... Rb3 {[%clk 0:00:20.2]} 49. Rb7 {[%clk 0:01:34.8]} 49... Rxb7
{[%clk 0:00:20.3]} 0-1

[Event "*** Titled Tuesday Blitz"]
[Site "Chess.com"]
[Date "2020.02.04"]
[Round "5"]
[White "kuli4ik"]
[Black "M1711"]
[Result "1-0"]
[WhiteElo "2845"]
[BlackElo "2520"]
[TimeControl "180+2"]
[EndTime "10:06:45 PST"]
[Termination "kuli4ik won by resignation"]

1. d4 {[%clk 0:03:01.9]} 1... d5 {[%clk 0:03:00]} 2. c4 {[%clk 0:03:03.8]} 2...
dxc4 {[%clk 0:03:00]} 3. Nc3 {[%clk 0:03:05.7]} 3... a6 {[%clk 0:02:57.6]} 4. a4
{[%clk 0:03:03.8]} 4... e5 {[%clk 0:02:53]} 5. e3 {[%clk 0:03:00.5]} 5... exd4
{[%clk 0:02:52.7]} 6. exd4 {[%clk 0:03:02.4]} 6... Bd6 {[%clk 0:02:51.6]} 7.
Bxc4 {[%clk 0:03:02.7]} 7... Nf6 {[%clk 0:02:49.5]} 8. Nf3 {[%clk 0:03:01.3]}
8... O-O {[%clk 0:02:49.9]} 9. O-O {[%clk 0:02:57]} 9... h6 {[%clk 0:02:48.9]}
10. Ne5 {[%clk 0:02:52.6]} 10... Nbd7 {[%clk 0:02:29.9]} 11. Re1 {[%clk
0:02:42.9]} 11... c5 {[%clk 0:02:06.2]} 12. Qb3 {[%clk 0:02:28.2]} 12... Bxe5
{[%clk 0:01:12.8]} 13. dxe5 {[%clk 0:02:27.5]} 13... Ng4 {[%clk 0:01:14.7]} 14.
Bf4 {[%clk 0:02:01.5]} 14... Qh4 {[%clk 0:01:03.9]} 15. Bg3 {[%clk 0:01:58.9]}
15... Qh5 {[%clk 0:01:05]} 16. e6 {[%clk 0:01:56.2]} 16... fxe6 {[%clk
0:01:00.1]} 17. Bxe6+ {[%clk 0:01:51.8]} 17... Kh8 {[%clk 0:01:01.3]} 18. h3
{[%clk 0:01:36.3]} 18... Ngf6 {[%clk 0:00:57]} 19. Rad1 {[%clk 0:01:29.2]} 19...
c4 {[%clk 0:00:39.1]} 20. Qxc4 {[%clk 0:01:09]} 20... Nb6 {[%clk 0:00:38.6]} 21.
Qb3 {[%clk 0:01:08]} 21... Bxe6 {[%clk 0:00:33.6]} 22. Qxe6 {[%clk 0:01:02.1]}
22... Qa5 {[%clk 0:00:28.7]} 23. Bc7 {[%clk 0:00:58.2]} 23... Nh5 {[%clk
0:00:05.1]} 24. Bxb6 {[%clk 0:00:57.2]} 24... Qg5 {[%clk 0:00:06.2]} 25. Qg4
{[%clk 0:00:51.7]} 25... Qxg4 {[%clk 0:00:02.9]} 26. hxg4 {[%clk 0:00:52.5]}
26... Nf4 {[%clk 0:00:04.6]} 27. Re7 {[%clk 0:00:46.4]} 27... Rf6 {[%clk
0:00:03.7]} 28. Be3 {[%clk 0:00:43.3]} 28... Ng6 {[%clk 0:00:03.7]} 29. Rxb7
{[%clk 0:00:41.1]} 29... Re8 {[%clk 0:00:02.7]} 30. Rdd7 {[%clk 0:00:39.4]}
30... Ref8 {[%clk 0:00:03.2]} 31. Rxg7 {[%clk 0:00:38.2]} 31... Rd8 {[%clk
0:00:03.3]} 32. Rh7+ {[%clk 0:00:36]} 32... Kg8 {[%clk 0:00:04.6]} 33. Rbg7+
{[%clk 0:00:34]} 33... Kf8 {[%clk 0:00:05.9]} 34. Bc5+ {[%clk 0:00:34.7]} 1-0

[Event "*** Titled Tuesday Blitz"]
[Site "Chess.com"]
[Date "2020.02.04"]
[Round "5"]
[White "gena217"]
[Black "Nikolakis2014"]
[Result "1-0"]
[WhiteElo "2999"]
[BlackElo "2703"]
[TimeControl "180+2"]
[EndTime "10:06:47 PST"]
[Termination "gena217 won on time"]

1. e4 {[%clk 0:03:01.9]} 1... e5 {[%clk 0:02:59]} 2. Nf3 {[%clk 0:03:02.7]} 2...
Nc6 {[%clk 0:03:00.6]} 3. Bb5 {[%clk 0:03:04.3]} 3... a6 {[%clk 0:03:01.3]} 4.
Ba4 {[%clk 0:03:04.9]} 4... Nf6 {[%clk 0:03:02.5]} 5. O-O {[%clk 0:03:05.7]}
5... Be7 {[%clk 0:03:03.7]} 6. d3 {[%clk 0:03:06.6]} 6... b5 {[%clk 0:03:04.3]}
7. Bb3 {[%clk 0:03:07.1]} 7... d6 {[%clk 0:03:05.7]} 8. a3 {[%clk 0:03:07.3]}
8... O-O {[%clk 0:03:06.2]} 9. Nc3 {[%clk 0:03:07.6]} 9... Bb7 {[%clk
0:03:07.2]} 10. Re1 {[%clk 0:03:04.6]} 10... Nb8 {[%clk 0:03:07.6]} 11. Ne2
{[%clk 0:02:55.7]} 11... Nbd7 {[%clk 0:03:07.7]} 12. Ng3 {[%clk 0:02:55.8]}
12... Nc5 {[%clk 0:03:03.9]} 13. Ba2 {[%clk 0:02:56.1]} 13... Ne6 {[%clk
0:02:53.7]} 14. c3 {[%clk 0:02:51.4]} 14... Re8 {[%clk 0:02:53.7]} 15. d4 {[%clk
0:02:49.1]} 15... Bf8 {[%clk 0:02:38.2]} 16. a4 {[%clk 0:02:40.7]} 16... c5
{[%clk 0:02:32.6]} 17. Bxe6 {[%clk 0:02:30.4]} 17... Rxe6 {[%clk 0:02:28.2]} 18.
d5 {[%clk 0:02:30.8]} 18... Re8 {[%clk 0:02:28.9]} 19. h3 {[%clk 0:02:31.8]}
19... Qc7 {[%clk 0:02:27.6]} 20. Bg5 {[%clk 0:02:31.7]} 20... Nd7 {[%clk
0:02:27.9]} 21. Nh2 {[%clk 0:02:32.2]} 21... c4 {[%clk 0:02:25.9]} 22. Ng4
{[%clk 0:02:30.9]} 22... Nc5 {[%clk 0:02:09.5]} 23. Nf6+ {[%clk 0:02:30.6]}
23... gxf6 {[%clk 0:01:37.4]} 24. Bxf6 {[%clk 0:02:32.5]} 24... Bc8 {[%clk
0:01:32.1]} 25. Nh5 {[%clk 0:02:33]} 25... h6 {[%clk 0:01:25.2]} 26. Re3 {[%clk
0:02:24.9]} 26... Kh7 {[%clk 0:01:24.6]} 27. Qf3 {[%clk 0:02:11.7]} 27... Nd3
{[%clk 0:01:21.5]} 28. Rxd3 {[%clk 0:02:05.2]} 28... cxd3 {[%clk 0:01:22.1]} 29.
Qg3 {[%clk 0:02:06.7]} 29... Qc4 {[%clk 0:00:55.4]} 30. Bh4 {[%clk 0:01:57.5]}
30... Kh8 {[%clk 0:00:16.4]} 31. Nf6 {[%clk 0:01:56.2]} 31... Be7 {[%clk
0:00:12.9]} 32. Nxe8 {[%clk 0:01:55.9]} 32... Bg4 {[%clk 0:00:10.4]} 33. Bxe7
{[%clk 0:01:50.6]} 33... Rxe8 {[%clk 0:00:10]} 34. Bf6+ {[%clk 0:01:50.3]} 34...
Kh7 {[%clk 0:00:11.1]} 35. Qxg4 {[%clk 0:01:51.9]} 35... Rg8 {[%clk 0:00:12.7]}
36. Qf3 {[%clk 0:01:53]} 36... Rg6 {[%clk 0:00:13.7]} 37. Be7 {[%clk 0:01:51.4]}
37... Kg7 {[%clk 0:00:13.8]} 38. axb5 {[%clk 0:01:48.5]} 38... Qxb5 {[%clk
0:00:11.4]} 39. Rd1 {[%clk 0:01:34.8]} 39... Qxb2 {[%clk 0:00:11.3]} 40. Qxd3
{[%clk 0:01:33.5]} 40... a5 {[%clk 0:00:09.5]} 41. Rb1 {[%clk 0:01:33.4]} 41...
Qa3 {[%clk 0:00:10.6]} 42. Qf3 {[%clk 0:01:25.3]} 42... a4 {[%clk 0:00:04.9]}
43. Rb8 {[%clk 0:01:23.3]} 43... Qc1+ {[%clk 0:00:03.3]} 44. Kh2 {[%clk
0:01:24.4]} 1-0

[Event "*** Titled Tuesday Blitz"]
[Site "Chess.com"]
[Date "2020.02.04"]
[Round "5"]
[White "Eraschenkov"]
[Black "GMKrikor"]
[Result "0-1"]
[WhiteElo "2613"]
[BlackElo "2840"]
[TimeControl "180+2"]
[EndTime "10:06:55 PST"]
[Termination "GMKrikor won on time"]

1. e4 {[%clk 0:02:59]} 1... c5 {[%clk 0:03:00.7]} 2. Nf3 {[%clk 0:02:59.9]} 2...
e6 {[%clk 0:03:00.9]} 3. d4 {[%clk 0:02:59.9]} 3... cxd4 {[%clk 0:03:02.5]} 4.
Nxd4 {[%clk 0:03:00.7]} 4... Nc6 {[%clk 0:02:59.4]} 5. Nc3 {[%clk 0:03:01.1]}
5... a6 {[%clk 0:02:59.8]} 6. Be3 {[%clk 0:03:01.5]} 6... Nf6 {[%clk 0:03:00.6]}
7. Bd3 {[%clk 0:03:02.1]} 7... Bb4 {[%clk 0:02:53.5]} 8. O-O {[%clk 0:03:01.7]}
8... O-O {[%clk 0:02:49.6]} 9. f4 {[%clk 0:02:40.9]} 9... Bc5 {[%clk 0:02:16.2]}
10. e5 {[%clk 0:02:12.6]} 10... Bxd4 {[%clk 0:01:56.8]} 11. Bxd4 {[%clk
0:02:11.3]} 11... Nxd4 {[%clk 0:01:58.6]} 12. exf6 {[%clk 0:02:11.8]} 12... Qxf6
{[%clk 0:02:00.5]} 13. Ne4 {[%clk 0:02:07.3]} 13... Qe7 {[%clk 0:02:01.3]} 14.
c3 {[%clk 0:01:43.2]} 14... Nf5 {[%clk 0:01:52.3]} 15. Qh5 {[%clk 0:01:36]}
15... g6 {[%clk 0:01:12.9]} 16. Qf3 {[%clk 0:01:34.3]} 16... d5 {[%clk
0:01:07.3]} 17. Nf2 {[%clk 0:01:33.9]} 17... Bd7 {[%clk 0:00:58.8]} 18. Bxf5
{[%clk 0:01:21]} 18... gxf5 {[%clk 0:00:53.7]} 19. Qe3 {[%clk 0:01:09.9]} 19...
Rac8 {[%clk 0:00:49.6]} 20. a4 {[%clk 0:01:07.1]} 20... Rc4 {[%clk 0:00:48.2]}
21. b3 {[%clk 0:00:45.1]} 21... Rc7 {[%clk 0:00:36.4]} 22. Nd3 {[%clk
0:00:31.4]} 22... Rxc3 {[%clk 0:00:29]} 23. Rf3 {[%clk 0:00:30.8]} 23... f6
{[%clk 0:00:29.9]} 24. Qd4 {[%clk 0:00:25.1]} 24... Rfc8 {[%clk 0:00:27.1]} 25.
Rg3+ {[%clk 0:00:23.1]} 25... Kh8 {[%clk 0:00:24.5]} 26. Re1 {[%clk 0:00:18.7]}
26... Rxb3 {[%clk 0:00:22.8]} 27. h3 {[%clk 0:00:14.2]} 27... Ra3 {[%clk
0:00:22.7]} 28. Ree3 {[%clk 0:00:10.1]} 28... Rxa4 {[%clk 0:00:23.3]} 29. Qxd5
{[%clk 0:00:11.3]} 29... Rac4 {[%clk 0:00:14.8]} 0-1